[Event "November 21 Early 2023"]
[Site "https://www.chess.com"]
[Date "2023.11.21"]
[Round "4"]
[White "Petersson, Kjell"]
[Black "PoXerStar"]
[Result "1/2-1/2"]
[Board "197"]
[TimeControl "180+1"]
[WhiteFideId "1705148"]
[WhiteElo "1994"]
[BlackElo "2440"]
[WhiteTeam "SWE"]
[WhiteClock "0:00:14"]
[BlackClock "0:00:06"]

1. d4 {[%clk 0:03:00]}  Nf6 {[%clk 0:02:52]} 2. Bf4 {[%clk 0:03:01]}  g6 {[%clk 0:02:46]} 3. Nc3 {[%clk 0:03:00]}  d5 {[%clk 0:02:46]} 4. e3 {[%clk 0:03:00]}  Bg7 {[%clk 0:02:42]} 5. Nb5 {[%clk 0:03:01]}  Na6 {[%clk 0:02:42]} 6. Nc3 {[%clk 0:03:01]}  Nb8 {[%clk 0:02:37]} 7. Nb5 {[%clk 0:03:01]}  Na6 {[%clk 0:02:37]} 8. Nc3 {[%clk 0:03:01]}  c6 {[%clk 0:02:19]} 9. Bxa6 {[%clk 0:03:01]}  bxa6 {[%clk 0:02:19]} 10. Be5 {[%clk 0:03:01]}  O-O {[%clk 0:02:16]} 11. Nge2 {[%clk 0:02:58]}  Re8 {[%clk 0:02:08]} 12. O-O {[%clk 0:02:48]}  a5 {[%clk 0:01:59]} 13. Na4 {[%clk 0:02:45]}  Bh6 {[%clk 0:01:52]} 14. Nc5 {[%clk 0:02:14]}  Nd7 {[%clk 0:01:40]} 15. Nxd7 {[%clk 0:02:04]}  Qxd7 {[%clk 0:01:41]} 16. Qd2 {[%clk 0:01:58]}  f6 {[%clk 0:01:40]} 17. Bf4 {[%clk 0:01:57]}  Bxf4 {[%clk 0:01:38]} 18. Nxf4 {[%clk 0:01:56]}  e5 {[%clk 0:01:37]} 19. dxe5 {[%clk 0:01:55]}  fxe5 {[%clk 0:01:38]} 20. Nd3 {[%clk 0:01:55]}  Qc7 {[%clk 0:01:28]} 21. Nc5 {[%clk 0:01:53]}  Rb8 {[%clk 0:01:26]} 22. b3 {[%clk 0:01:53]}  Rb4 {[%clk 0:01:19]} 23. a3 {[%clk 0:01:52]}  Rh4 {[%clk 0:01:18]} 24. g3 {[%clk 0:01:41]}  Rh5 {[%clk 0:01:17]} 25. f3 {[%clk 0:01:27]}  Bh3 {[%clk 0:01:05]} 26. Rf2 {[%clk 0:01:27]}  Rf5 {[%clk 0:00:51]} 27. e4 {[%clk 0:01:20]}  Rf7 {[%clk 0:00:32]} 28. Re1 {[%clk 0:01:17]}  d4 {[%clk 0:00:30]} 29. Nd3 {[%clk 0:01:15]}  Ref8 {[%clk 0:00:23]} 30. f4 {[%clk 0:01:15]}  exf4 {[%clk 0:00:24]} 31. Nxf4 {[%clk 0:01:15]}  Bd7 {[%clk 0:00:19]} 32. Qxd4 {[%clk 0:01:12]}  c5 {[%clk 0:00:14]} 33. Qc4 {[%clk 0:01:11]}  Qb6 {[%clk 0:00:12]} 34. Ref1 {[%clk 0:01:10]}  Bb5 {[%clk 0:00:12]} 35. Qd5 {[%clk 0:01:01]}  Bxf1 {[%clk 0:00:12]} 36. Rxf1 {[%clk 0:01:01]}  c4+ {[%clk 0:00:12]} 37. Kg2 {[%clk 0:00:56]}  cxb3 {[%clk 0:00:12]} 38. cxb3 {[%clk 0:00:55]}  Rd8 {[%clk 0:00:12]} 39. Qxf7+ {[%clk 0:00:48]}  Kxf7 {[%clk 0:00:11]} 40. Nd5+ {[%clk 0:00:48]}  Ke6 {[%clk 0:00:10]} 41. Nxb6 {[%clk 0:00:49]}  axb6 {[%clk 0:00:11]} 42. Rf3 {[%clk 0:00:46]}  Rd2+ {[%clk 0:00:11]} 43. Rf2 {[%clk 0:00:46]}  Rd3 {[%clk 0:00:11]} 44. Rf3 {[%clk 0:00:46]}  Rd2+ {[%clk 0:00:11]} 45. Kh3 {[%clk 0:00:45]}  Ra2 {[%clk 0:00:11]} 46. a4 {[%clk 0:00:44]}  Ke5 {[%clk 0:00:11]} 47. Rf7 {[%clk 0:00:43]}  Rb2 {[%clk 0:00:11]} 48. Rxh7 {[%clk 0:00:42]}  Kxe4 {[%clk 0:00:07]} 49. Rg7 {[%clk 0:00:40]}  Kf5 {[%clk 0:00:07]} 50. Rf7+ {[%clk 0:00:31]}  Kg5 {[%clk 0:00:07]} 51. Re7 {[%clk 0:00:26]}  Rxb3 {[%clk 0:00:07]} 52. Re6 {[%clk 0:00:25]}  Rb2 {[%clk 0:00:06]} 53. Rd6 {[%clk 0:00:23]}  Rb4 {[%clk 0:00:06]} 54. Rd5+ {[%clk 0:00:22]}  Kf6 {[%clk 0:00:05]} 55. Kg2 {[%clk 0:00:20]}  Ke6 {[%clk 0:00:03]} 56. Rg5 {[%clk 0:00:19]}  Kf6 {[%clk 0:00:03]} 57. Rd5 {[%clk 0:00:19]}  Kg7 {[%clk 0:00:02]} 58. Rd6 {[%clk 0:00:18]}  Kh6 {[%clk 0:00:02]} 59. h4 {[%clk 0:00:17]}  Rb2+ {[%clk 0:00:02]} 60. Kh3 {[%clk 0:00:17]}  Rb3 {[%clk 0:00:03]} 61. Kg4 {[%clk 0:00:16]}  Rb4+ {[%clk 0:00:02]} 62. Kh3 {[%clk 0:00:16]}  Rxa4 {[%clk 0:00:03]} 63. Rxb6 {[%clk 0:00:16]}  Rb4 {[%clk 0:00:03]} 64. Ra6 {[%clk 0:00:16]}  a4 {[%clk 0:00:03]} 65. Kg2 {[%clk 0:00:14]}  Kh7 {[%clk 0:00:03]} 66. Kh2 {[%clk 0:00:13]}  Rc4 {[%clk 0:00:02]} 67. Kg2 {[%clk 0:00:13]}  Kg7 {[%clk 0:00:03]} 68. Kh2 {[%clk 0:00:13]}  Kf7 {[%clk 0:00:04]} 69. Kg2 {[%clk 0:00:13]}  Rd4 {[%clk 0:00:04]} 70. Kh2 {[%clk 0:00:14]}  Re4 {[%clk 0:00:04]} 71. Kg2 {[%clk 0:00:14]}  Rg4 {[%clk 0:00:04]} 72. Kh2 {[%clk 0:00:14]}  Rc4 {[%clk 0:00:04]} 73. Kg2 {[%clk 0:00:14]}  Kg7 {[%clk 0:00:05]} 74. Kh2 {[%clk 0:00:14]}  g5 {[%clk 0:00:06]} 75. Kg2 {[%clk 0:00:15]}  gxh4 {[%clk 0:00:06]} 76. gxh4 {[%clk 0:00:15]}  Rxh4 {[%clk 0:00:06]} 77. Kf2 {[%clk 0:00:14]}  Kf7 {[%clk 0:00:02]} 78. Ke2 {[%clk 0:00:15]}  Rd4 {[%clk 0:00:01]} 79. Ke3 {[%clk 0:00:14]}  Rh4 {[%clk 0:00:02]} 80. Kd2 {[%clk 0:00:13]}  Ke7 {[%clk 0:00:02]} 81. Kc2 {[%clk 0:00:13]}  Kd7 {[%clk 0:00:02]} 82. Kb2 {[%clk 0:00:13]}  Kc7 {[%clk 0:00:03]} 83. Ka3 {[%clk 0:00:13]}  Rh1 {[%clk 0:00:02]} 84. Rxa4 {[%clk 0:00:13]}  Kb7 {[%clk 0:00:03]} 85. Rb4+ {[%clk 0:00:13]}  Kc6 {[%clk 0:00:03]} 86. Kb3 {[%clk 0:00:13]}  Kc5 {[%clk 0:00:03]} 87. Rg4 {[%clk 0:00:12]}  Rh3+ {[%clk 0:00:03]} 88. Kc2 {[%clk 0:00:13]}  Rh5 {[%clk 0:00:04]} 89. Kd3 {[%clk 0:00:13]}  Rd5+ {[%clk 0:00:05]} 90. Kc3 {[%clk 0:00:13]}  Re5 {[%clk 0:00:05]} 91. Kd3 {[%clk 0:00:13]}  Rd5+ {[%clk 0:00:05]} 92. Kc3 {[%clk 0:00:13]}  Re5 {[%clk 0:00:06]} 93. Kd3 {[%clk 0:00:14]}  Rd5+ {[%clk 0:00:06]} 1/2-1/2

[Event "November 21 Early 2023"]
[Site "https://www.chess.com"]
[Date "2023.11.21"]
[Round "4"]
[White "Feliz Dotel, Dewar Bienvenido"]
[Black "Mazurkiewicz, Michal"]
[Result "0-1"]
[Board "198"]
[TimeControl "180+1"]
[WhiteFideId "6402801"]
[BlackFideId "1124943"]
[WhiteElo "2069"]
[BlackElo "2124"]
[WhiteTeam "DOM"]
[BlackTeam "POL"]
[WhiteClock "0:00:39"]
[BlackClock "0:02:00"]

1. d4 {[%clk 0:03:00]}  Nf6 {[%clk 0:02:59]} 2. e3 {[%clk 0:03:00]}  g6 {[%clk 0:02:59]} 3. Nf3 {[%clk 0:02:59]}  Bg7 {[%clk 0:03:00]} 4. Be2 {[%clk 0:03:00]}  O-O {[%clk 0:03:00]} 5. b4 {[%clk 0:02:59]}  d6 {[%clk 0:03:01]} 6. Bb2 {[%clk 0:02:59]}  Nbd7 {[%clk 0:03:02]} 7. c4 {[%clk 0:02:58]}  Re8 {[%clk 0:03:01]} 8. Nc3 {[%clk 0:02:58]}  e5 {[%clk 0:03:01]} 9. O-O {[%clk 0:02:58]}  e4 {[%clk 0:03:02]} 10. Nd2 {[%clk 0:02:57]}  Nf8 {[%clk 0:03:02]} 11. Qb3 {[%clk 0:02:57]}  Bf5 {[%clk 0:03:02]} 12. a4 {[%clk 0:02:54]}  h5 {[%clk 0:03:02]} 13. a5 {[%clk 0:02:53]}  a6 {[%clk 0:03:01]} 14. b5 {[%clk 0:02:51]}  N8h7 {[%clk 0:03:00]} 15. c5 {[%clk 0:02:50]}  axb5 {[%clk 0:02:50]} 16. Qxb5 {[%clk 0:02:38]}  Ng4 {[%clk 0:02:33]} 17. Ba3 {[%clk 0:02:03]}  Qh4 {[%clk 0:02:26]} 18. Bxg4 {[%clk 0:02:02]}  hxg4 {[%clk 0:02:26]} 19. Qxb7 {[%clk 0:01:55]}  Ng5 {[%clk 0:02:23]} 20. cxd6 {[%clk 0:01:52]}  Nf3+ {[%clk 0:02:17]} 21. Nxf3 {[%clk 0:01:40]}  gxf3 {[%clk 0:02:16]} 22. dxc7 {[%clk 0:01:36]}  Qg4 {[%clk 0:02:10]} 23. h3 {[%clk 0:00:39]}  Qxg2# {[%clk 0:02:00]} 0-1

[Event "November 21 Early 2023"]
[Site "https://www.chess.com"]
[Date "2023.11.21"]
[Round "4"]
[White "dumbernugget"]
[Black "Bogaudinov, Rushan"]
[Result "0-1"]
[Board "200"]
[TimeControl "180+1"]
[BlackFideId "4129288"]
[WhiteElo "1843"]
[BlackElo "1908"]
[BlackTeam "RUS"]
[WhiteClock "0:00:02"]
[BlackClock "0:00:23"]

1. d4 {[%clk 0:03:00]}  d5 {[%clk 0:02:44]} 2. c4 {[%clk 0:03:00]}  e6 {[%clk 0:02:44]} 3. Nc3 {[%clk 0:03:00]}  Nf6 {[%clk 0:02:44]} 4. cxd5 {[%clk 0:03:01]}  exd5 {[%clk 0:02:44]} 5. Bg5 {[%clk 0:03:01]}  c6 {[%clk 0:02:45]} 6. e3 {[%clk 0:03:01]}  Be7 {[%clk 0:02:45]} 7. Bd3 {[%clk 0:03:01]}  Nbd7 {[%clk 0:02:45]} 8. Qc2 {[%clk 0:03:01]}  O-O {[%clk 0:02:44]} 9. Nf3 {[%clk 0:03:02]}  h6 {[%clk 0:02:44]} 10. Bh4 {[%clk 0:03:01]}  Re8 {[%clk 0:02:43]} 11. O-O {[%clk 0:03:01]}  Ne4 {[%clk 0:02:44]} 12. Bxe4 {[%clk 0:03:00]}  Bxh4 {[%clk 0:02:42]} 13. Bh7+ {[%clk 0:02:59]}  Kh8 {[%clk 0:02:42]} 14. Nxh4 {[%clk 0:03:00]}  Qxh4 {[%clk 0:02:41]} 15. Bd3 {[%clk 0:03:01]}  g6 {[%clk 0:02:35]} 16. b4 {[%clk 0:02:52]}  Nf6 {[%clk 0:02:31]} 17. b5 {[%clk 0:02:44]}  Bd7 {[%clk 0:02:30]} 18. bxc6 {[%clk 0:02:39]}  Bxc6 {[%clk 0:02:30]} 19. Nb5 {[%clk 0:02:33]}  Bxb5 {[%clk 0:02:23]} 20. Bxb5 {[%clk 0:02:33]}  Rec8 {[%clk 0:02:20]} 21. Qb3 {[%clk 0:02:30]}  Kg7 {[%clk 0:02:07]} 22. Be2 {[%clk 0:02:27]}  Rc7 {[%clk 0:02:00]} 23. Rac1 {[%clk 0:02:24]}  Rac8 {[%clk 0:02:00]} 24. Qb2 {[%clk 0:02:21]}  Ne4 {[%clk 0:01:54]} 25. g3 {[%clk 0:02:08]}  Qf6 {[%clk 0:01:44]} 26. Rxc7 {[%clk 0:01:58]}  Rxc7 {[%clk 0:01:44]} 27. f3 {[%clk 0:01:51]}  Ng5 {[%clk 0:01:39]} 28. Kg2 {[%clk 0:01:38]}  Qc6 {[%clk 0:01:33]} 29. Rb1 {[%clk 0:01:29]}  b6 {[%clk 0:01:32]} 30. Bd3 {[%clk 0:01:27]}  h5 {[%clk 0:01:28]} 31. h4 {[%clk 0:01:24]}  Ne6 {[%clk 0:01:27]} 32. e4 {[%clk 0:01:22]}  dxe4 {[%clk 0:01:07]} 33. d5+ {[%clk 0:01:19]}  Qc3 {[%clk 0:01:06]} 34. Bxe4 {[%clk 0:00:59]}  Qxb2+ {[%clk 0:01:05]} 35. Rxb2 {[%clk 0:00:59]}  Nc5 {[%clk 0:01:05]} 36. Rd2 {[%clk 0:00:57]}  Rd7 {[%clk 0:01:02]} 37. d6 {[%clk 0:00:54]}  Nxe4 {[%clk 0:01:01]} 38. fxe4 {[%clk 0:00:54]}  Kf6 {[%clk 0:01:01]} 39. Kf3 {[%clk 0:00:30]}  Ke6 {[%clk 0:00:59]} 40. Ke3 {[%clk 0:00:27]}  Rxd6 {[%clk 0:00:58]} 41. Rc2 {[%clk 0:00:27]}  Rd7 {[%clk 0:00:54]} 42. Rc6+ {[%clk 0:00:25]}  Ke5 {[%clk 0:00:47]} 43. a4 {[%clk 0:00:22]}  Rb7 {[%clk 0:00:44]} 44. Rc4 {[%clk 0:00:14]}  a6 {[%clk 0:00:43]} 45. Rc6 {[%clk 0:00:14]}  f6 {[%clk 0:00:38]} 46. a5 {[%clk 0:00:14]}  bxa5 {[%clk 0:00:36]} 47. Rc5+ {[%clk 0:00:14]}  Kd6 {[%clk 0:00:34]} 48. Rxa5 {[%clk 0:00:15]}  Rb6 {[%clk 0:00:34]} 49. Kf4 {[%clk 0:00:14]}  Ke6 {[%clk 0:00:33]} 50. Ra4 {[%clk 0:00:14]}  Kd7 {[%clk 0:00:31]} 51. Ra5 {[%clk 0:00:15]}  Kc7 {[%clk 0:00:31]} 52. e5 {[%clk 0:00:15]}  Rb4+ {[%clk 0:00:30]} 53. Ke3 {[%clk 0:00:14]}  Kb6 {[%clk 0:00:26]} 54. Rd5 {[%clk 0:00:13]}  fxe5 {[%clk 0:00:26]} 55. Rxe5 {[%clk 0:00:13]}  Rg4 {[%clk 0:00:26]} 56. Kf3 {[%clk 0:00:13]}  a5 {[%clk 0:00:27]} 57. Re1 {[%clk 0:00:13]}  a4 {[%clk 0:00:27]} 58. Ra1 {[%clk 0:00:13]}  Ka5 {[%clk 0:00:27]} 59. Re1 {[%clk 0:00:13]}  a3 {[%clk 0:00:27]} 60. Re8 {[%clk 0:00:13]}  Ka4 {[%clk 0:00:26]} 61. Rb8 {[%clk 0:00:13]}  a2 {[%clk 0:00:25]} 62. Rb7 {[%clk 0:00:09]}  Ka3 {[%clk 0:00:24]} 63. Ra7+ {[%clk 0:00:08]}  Ra4 {[%clk 0:00:24]} 64. Rd7 {[%clk 0:00:05]}  a1=Q {[%clk 0:00:22]} 65. Rd3+ {[%clk 0:00:05]}  Kb2 {[%clk 0:00:23]} 66. Rd2+ {[%clk 0:00:02]}  Kc3 {[%clk 0:00:23]} 0-1

[Event "November 21 Early 2023"]
[Site "https://www.chess.com"]
[Date "2023.11.21"]
[Round "4"]
[White "LangesNasenhaar"]
[Black "Skiadopoulos, Nikolaos"]
[Result "1-0"]
[Board "201"]
[TimeControl "180+1"]
[BlackFideId "4200772"]
[WhiteElo "2430"]
[BlackElo "2022"]
[BlackTeam "GRE"]
[WhiteClock "0:01:21"]
[BlackClock "0:00:26"]

1. d4 {[%clk 0:03:00]}  Nf6 {[%clk 0:02:59]} 2. Nc3 {[%clk 0:03:01]}  c5 {[%clk 0:02:56]} 3. dxc5 {[%clk 0:02:59]}  Na6 {[%clk 0:02:56]} 4. e4 {[%clk 0:02:59]}  Nxc5 {[%clk 0:02:52]} 5. e5 {[%clk 0:02:59]}  Nfe4 {[%clk 0:02:52]} 6. Qd4 {[%clk 0:02:48]}  Nxc3 {[%clk 0:02:48]} 7. Qxc5 {[%clk 0:02:42]}  Ne4 {[%clk 0:02:48]} 8. Qe3 {[%clk 0:02:30]}  d5 {[%clk 0:02:33]} 9. exd6 {[%clk 0:02:11]}  Nxd6 {[%clk 0:02:33]} 10. Bd2 {[%clk 0:02:11]}  Bf5 {[%clk 0:02:13]} 11. Nf3 {[%clk 0:02:07]}  Qc7 {[%clk 0:01:52]} 12. Bc3 {[%clk 0:02:01]}  a6 {[%clk 0:01:13]} 13. Nd4 {[%clk 0:01:51]}  Bd7 {[%clk 0:01:09]} 14. Bd3 {[%clk 0:01:45]}  e6 {[%clk 0:01:04]} 15. O-O {[%clk 0:01:43]}  Be7 {[%clk 0:01:03]} 16. Rad1 {[%clk 0:01:39]}  O-O-O {[%clk 0:00:59]} 17. Nb3 {[%clk 0:01:29]}  Kb8 {[%clk 0:00:41]} 18. Ba5 {[%clk 0:01:26]}  Nc4 {[%clk 0:00:26]} 19. Bxc7+ {[%clk 0:01:21]} 1-0

[Event "November 21 Early 2023"]
[Site "https://www.chess.com"]
[Date "2023.11.21"]
[Round "4"]
[White "Goswami, Vedant"]
[Black "Kanyamarala, Trisha"]
[Result "0-1"]
[Board "202"]
[TimeControl "180+1"]
[WhiteFideId "5003725"]
[BlackFideId "45004722"]
[WhiteElo "2011"]
[BlackElo "2078"]
[WhiteTeam "IND"]
[BlackTeam "IRL"]
[WhiteClock "0:00:02"]
[BlackClock "0:00:03"]

1. c3 {[%clk 0:03:00]}  d5 {[%clk 0:02:57]} 2. d4 {[%clk 0:03:00]}  Nf6 {[%clk 0:02:54]} 3. Bf4 {[%clk 0:02:59]}  e6 {[%clk 0:02:54]} 4. Nf3 {[%clk 0:02:59]}  c5 {[%clk 0:02:53]} 5. Nbd2 {[%clk 0:02:56]}  Nc6 {[%clk 0:02:49]} 6. e3 {[%clk 0:02:56]}  Nh5 {[%clk 0:02:46]} 7. Bg5 {[%clk 0:02:50]}  f6 {[%clk 0:02:45]} 8. Bh4 {[%clk 0:02:50]}  g6 {[%clk 0:02:39]} 9. Bd3 {[%clk 0:02:48]}  cxd4 {[%clk 0:02:32]} 10. exd4 {[%clk 0:02:41]}  Be7 {[%clk 0:02:14]} 11. O-O {[%clk 0:02:39]}  O-O {[%clk 0:02:13]} 12. Re1 {[%clk 0:02:39]}  Re8 {[%clk 0:01:34]} 13. c4 {[%clk 0:02:34]}  Nf4 {[%clk 0:01:24]} 14. Bf1 {[%clk 0:02:32]}  a6 {[%clk 0:01:15]} 15. Qb3 {[%clk 0:02:23]}  Na5 {[%clk 0:01:01]} 16. Qc3 {[%clk 0:02:19]}  Bd7 {[%clk 0:00:41]} 17. Bg3 {[%clk 0:02:04]}  Bd6 {[%clk 0:00:25]} 18. b4 {[%clk 0:01:35]}  Nc6 {[%clk 0:00:18]} 19. a3 {[%clk 0:01:34]}  Rc8 {[%clk 0:00:15]} 20. Rac1 {[%clk 0:01:31]}  Qc7 {[%clk 0:00:09]} 21. c5 {[%clk 0:01:28]}  Bf8 {[%clk 0:00:09]} 22. a4 {[%clk 0:01:25]}  e5 {[%clk 0:00:08]} 23. Bxf4 {[%clk 0:01:19]}  exf4 {[%clk 0:00:08]} 24. b5 {[%clk 0:01:15]}  axb5 {[%clk 0:00:08]} 25. axb5 {[%clk 0:01:14]}  Ne7 {[%clk 0:00:08]} 26. Qb3 {[%clk 0:01:11]}  Kh8 {[%clk 0:00:06]} 27. Bd3 {[%clk 0:01:08]}  Bf5 {[%clk 0:00:05]} 28. Re2 {[%clk 0:01:06]}  Bxd3 {[%clk 0:00:05]} 29. Qxd3 {[%clk 0:01:06]}  Nf5 {[%clk 0:00:05]} 30. Rce1 {[%clk 0:01:05]}  Rxe2 {[%clk 0:00:05]} 31. Qxe2 {[%clk 0:01:05]}  Qd7 {[%clk 0:00:04]} 32. b6 {[%clk 0:01:02]}  Rd8 {[%clk 0:00:04]} 33. h3 {[%clk 0:01:01]}  Kg8 {[%clk 0:00:03]} 34. Nb1 {[%clk 0:00:47]}  Ng7 {[%clk 0:00:03]} 35. Nc3 {[%clk 0:00:47]}  Re8 {[%clk 0:00:03]} 36. Qd2 {[%clk 0:00:46]}  Rxe1+ {[%clk 0:00:03]} 37. Qxe1 {[%clk 0:00:46]}  g5 {[%clk 0:00:03]} 38. Qd1 {[%clk 0:00:42]}  h5 {[%clk 0:00:03]} 39. Qb3 {[%clk 0:00:41]}  g4 {[%clk 0:00:03]} 40. hxg4 {[%clk 0:00:40]}  hxg4 {[%clk 0:00:03]} 41. Nd2 {[%clk 0:00:37]}  Qe7 {[%clk 0:00:03]} 42. Nxd5 {[%clk 0:00:35]}  Qe1+ {[%clk 0:00:02]} 43. Nf1 {[%clk 0:00:35]}  Kh7 {[%clk 0:00:01]} 44. Nxf6+ {[%clk 0:00:34]}  Kg6 {[%clk 0:00:01]} 45. Nxg4 {[%clk 0:00:34]}  Nf5 {[%clk 0:00:01]} 46. Qe6+ {[%clk 0:00:33]}  Qxe6 {[%clk 0:00:01]} 47. Ne5+ {[%clk 0:00:12]}  Kh7 {[%clk 0:00:01]} 48. Nh2 {[%clk 0:00:11]}  Bg7 {[%clk 0:00:01]} 49. Nhg4 {[%clk 0:00:10]}  Bxe5 {[%clk 0:00:01]} 50. d5 {[%clk 0:00:09]}  Qxd5 {[%clk 0:00:01]} 51. g3 {[%clk 0:00:08]}  Qd1+ {[%clk 0:00:02]} 52. Kg2 {[%clk 0:00:02]}  Qxg4 {[%clk 0:00:03]} 0-1

[Event "November 21 Early 2023"]
[Site "https://www.chess.com"]
[Date "2023.11.21"]
[Round "4"]
[White "Jamal-Jamal-Jamal"]
[Black "Umarov, Sabir"]
[Result "1/2-1/2"]
[Board "203"]
[TimeControl "180+1"]
[BlackFideId "14200538"]
[WhiteElo "2471"]
[BlackElo "2324"]
[BlackTeam "UZB"]
[WhiteClock "0:00:18"]
[BlackClock "0:00:34"]

1. d4 {[%clk 0:03:00]}  c6 {[%clk 0:02:58]} 2. c4 {[%clk 0:03:00]}  g6 {[%clk 0:02:58]} 3. Nf3 {[%clk 0:02:59]}  Bg7 {[%clk 0:02:58]} 4. Nc3 {[%clk 0:02:59]}  d6 {[%clk 0:02:59]} 5. g3 {[%clk 0:02:59]}  Bg4 {[%clk 0:02:58]} 6. Bg2 {[%clk 0:02:59]}  Qb6 {[%clk 0:02:58]} 7. e3 {[%clk 0:02:48]}  e5 {[%clk 0:02:57]} 8. d5 {[%clk 0:02:42]}  Ne7 {[%clk 0:02:49]} 9. h3 {[%clk 0:02:38]}  Bxf3 {[%clk 0:02:38]} 10. Qxf3 {[%clk 0:02:39]}  O-O {[%clk 0:02:34]} 11. O-O {[%clk 0:02:39]}  Nd7 {[%clk 0:02:33]} 12. Rd1 {[%clk 0:02:18]}  c5 {[%clk 0:02:19]} 13. Ne4 {[%clk 0:02:06]}  h6 {[%clk 0:02:14]} 14. g4 {[%clk 0:01:42]}  f5 {[%clk 0:02:12]} 15. Ng3 {[%clk 0:01:41]}  f4 {[%clk 0:01:24]} 16. Ne4 {[%clk 0:01:26]}  Nf6 {[%clk 0:01:10]} 17. exf4 {[%clk 0:01:15]}  exf4 {[%clk 0:01:00]} 18. Qxf4 {[%clk 0:00:53]}  Nxe4 {[%clk 0:00:22]} 19. Qxe4 {[%clk 0:00:51]}  Rae8 {[%clk 0:00:22]} 20. Bf4 {[%clk 0:00:32]}  Nf5 {[%clk 0:00:15]} 21. Qc2 {[%clk 0:00:23]}  Nd4 {[%clk 0:00:15]} 22. Rxd4 {[%clk 0:00:18]}  cxd4 {[%clk 0:00:12]} 23. Bg3 {[%clk 0:00:16]}  Kh7 {[%clk 0:00:07]} 24. Be4 {[%clk 0:00:15]}  Rf6 {[%clk 0:00:07]} 25. Bh4 {[%clk 0:00:13]}  Ref8 {[%clk 0:00:06]} 26. Bxf6 {[%clk 0:00:12]}  Rxf6 {[%clk 0:00:07]} 27. f3 {[%clk 0:00:12]}  d3+ {[%clk 0:00:05]} 28. Qf2 {[%clk 0:00:09]}  Qd8 {[%clk 0:00:03]} 29. Bxd3 {[%clk 0:00:07]}  Rf4 {[%clk 0:00:04]} 30. Be4 {[%clk 0:00:07]}  Qf6 {[%clk 0:00:03]} 31. Qc2 {[%clk 0:00:07]}  Qxb2 {[%clk 0:00:03]} 32. Qxb2 {[%clk 0:00:06]}  Bxb2 {[%clk 0:00:02]} 33. Rb1 {[%clk 0:00:06]}  Bd4+ {[%clk 0:00:03]} 34. Kg2 {[%clk 0:00:07]}  b6 {[%clk 0:00:03]} 35. Rb3 {[%clk 0:00:07]}  Rf6 {[%clk 0:00:03]} 36. Kf1 {[%clk 0:00:06]}  Be5 {[%clk 0:00:04]} 37. Ke2 {[%clk 0:00:06]}  Kg7 {[%clk 0:00:05]} 38. Kd3 {[%clk 0:00:06]}  g5 {[%clk 0:00:05]} 39. Ra3 {[%clk 0:00:07]}  Rf7 {[%clk 0:00:05]} 40. Ra6 {[%clk 0:00:06]}  Rc7 {[%clk 0:00:06]} 41. a4 {[%clk 0:00:06]}  Bf4 {[%clk 0:00:06]} 42. a5 {[%clk 0:00:06]}  bxa5 {[%clk 0:00:06]} 43. Rxa5 {[%clk 0:00:06]}  Bg3 {[%clk 0:00:07]} 44. Ra6 {[%clk 0:00:07]}  Kf6 {[%clk 0:00:07]} 45. c5 {[%clk 0:00:06]}  Rxc5 {[%clk 0:00:04]} 46. Rxa7 {[%clk 0:00:05]}  Rc1 {[%clk 0:00:02]} 47. Rh7 {[%clk 0:00:05]}  Rd1+ {[%clk 0:00:02]} 48. Ke2 {[%clk 0:00:05]}  Re1+ {[%clk 0:00:02]} 49. Kd2 {[%clk 0:00:05]}  Rh1 {[%clk 0:00:02]} 50. Rxh6+ {[%clk 0:00:05]}  Ke7 {[%clk 0:00:03]} 51. Rh7+ {[%clk 0:00:02]}  Kf8 {[%clk 0:00:03]} 52. Bf5 {[%clk 0:00:03]}  Bf4+ {[%clk 0:00:03]} 53. Kd3 {[%clk 0:00:03]}  Rh2 {[%clk 0:00:04]} 54. Kc4 {[%clk 0:00:03]}  Re2 {[%clk 0:00:05]} 55. Be4 {[%clk 0:00:03]}  Re1 {[%clk 0:00:04]} 56. Kb5 {[%clk 0:00:03]}  Rc1 {[%clk 0:00:05]} 57. Rb7 {[%clk 0:00:02]}  Rc5+ {[%clk 0:00:05]} 58. Kb6 {[%clk 0:00:02]}  Rc1 {[%clk 0:00:05]} 59. Ka7 {[%clk 0:00:03]}  Ra1+ {[%clk 0:00:05]} 60. Kb8 {[%clk 0:00:04]}  Rc1 {[%clk 0:00:06]} 61. Rc7 {[%clk 0:00:04]}  Rxc7 {[%clk 0:00:05]} 62. Kxc7 {[%clk 0:00:05]}  Ke7 {[%clk 0:00:06]} 63. Kc6 {[%clk 0:00:06]}  Kf6 {[%clk 0:00:06]} 64. Kd7 {[%clk 0:00:06]}  Be5 {[%clk 0:00:05]} 65. Bf5 {[%clk 0:00:07]}  Kg7 {[%clk 0:00:06]} 66. Ke8 {[%clk 0:00:07]}  Bf4 {[%clk 0:00:06]} 67. Ke7 {[%clk 0:00:08]}  Be5 {[%clk 0:00:07]} 68. Ke6 {[%clk 0:00:08]}  Bf4 {[%clk 0:00:08]} 69. h4 {[%clk 0:00:05]}  Be5 {[%clk 0:00:09]} 70. hxg5 {[%clk 0:00:05]}  Bf4 {[%clk 0:00:09]} 71. Ke7 {[%clk 0:00:05]}  Bxg5+ {[%clk 0:00:09]} 72. Ke6 {[%clk 0:00:06]}  Bf4 {[%clk 0:00:09]} 73. Kd7 {[%clk 0:00:05]}  Kf6 {[%clk 0:00:09]} 74. Ke8 {[%clk 0:00:05]}  Be5 {[%clk 0:00:10]} 75. Kf8 {[%clk 0:00:05]}  Kg5 {[%clk 0:00:10]} 76. Be4 {[%clk 0:00:05]}  Bf4 {[%clk 0:00:11]} 77. Kg7 {[%clk 0:00:05]}  Be5+ {[%clk 0:00:12]} 78. Kf7 {[%clk 0:00:05]}  Bf4 {[%clk 0:00:13]} 79. Ke6 {[%clk 0:00:06]}  Be5 {[%clk 0:00:13]} 80. Kd7 {[%clk 0:00:05]}  Bf4 {[%clk 0:00:13]} 81. Ke6 {[%clk 0:00:06]}  Be5 {[%clk 0:00:14]} 82. Bc2 {[%clk 0:00:05]}  Bf4 {[%clk 0:00:15]} 83. Kf7 {[%clk 0:00:03]}  Be5 {[%clk 0:00:16]} 84. Ke6 {[%clk 0:00:04]}  Bf4 {[%clk 0:00:17]} 85. Bd3 {[%clk 0:00:04]}  Be5 {[%clk 0:00:17]} 86. Bc4 {[%clk 0:00:05]}  Bf4 {[%clk 0:00:17]} 87. Be2 {[%clk 0:00:06]}  Be5 {[%clk 0:00:18]} 88. f4+ {[%clk 0:00:06]}  Bxf4 {[%clk 0:00:19]} 89. Kf7 {[%clk 0:00:05]}  Be5 {[%clk 0:00:20]} 90. Ke6 {[%clk 0:00:06]}  Bf4 {[%clk 0:00:20]} 91. Bd3 {[%clk 0:00:06]}  Be5 {[%clk 0:00:21]} 92. Be4 {[%clk 0:00:07]}  Bg3 {[%clk 0:00:22]} 93. Bf5 {[%clk 0:00:08]}  Bh2 {[%clk 0:00:23]} 94. Kd7 {[%clk 0:00:08]}  Bg3 {[%clk 0:00:23]} 95. Ke6 {[%clk 0:00:09]}  Bh2 {[%clk 0:00:24]} 96. Kd7 {[%clk 0:00:10]}  Be5 {[%clk 0:00:25]} 97. Ke6 {[%clk 0:00:11]}  Bg3 {[%clk 0:00:25]} 98. Kd7 {[%clk 0:00:11]}  Bh2 {[%clk 0:00:26]} 99. Kc6 {[%clk 0:00:12]}  Be5 {[%clk 0:00:27]} 100. Kb5 {[%clk 0:00:12]}  Bf4 {[%clk 0:00:27]} 101. Kc4 {[%clk 0:00:13]}  Be5 {[%clk 0:00:28]} 102. Kd3 {[%clk 0:00:14]}  Bf4 {[%clk 0:00:29]} 103. Ke4 {[%clk 0:00:15]}  Be5 {[%clk 0:00:29]} 104. Kf3 {[%clk 0:00:16]}  Bf4 {[%clk 0:00:30]} 105. Kg2 {[%clk 0:00:16]}  Be5 {[%clk 0:00:31]} 106. Kf3 {[%clk 0:00:17]}  Bf4 {[%clk 0:00:32]} 107. Kg2 {[%clk 0:00:17]}  Be5 {[%clk 0:00:33]} 108. Kh1 {[%clk 0:00:18]}  Bf4 {[%clk 0:00:34]} 109. Kg2 {[%clk 0:00:18]} 1/2-1/2